bitfinex/quotes_SOLUSD_20220128
["timestamp","ask_amount","ask_price","bid_price","bid_amount"]
[1643395127152,38.7774881,92.19,92.07,6.0]
[1643395127352,38.7774881,92.19,92.071,0.25]
[1643395127555,38.7774881,92.19,92.071,6.25]
[1643395127753,2.95669142,92.224,92.072,2.95669142]
[1643395127956,2.87182845,92.264,92.08,0.30065162]
[1643395128161,6.514,92.22,92.12,16.282]
[1643395128364,17.83731911,92.247,92.084,24.3944]
[1643395128564,2.95669142,92.231,92.084,24.3944]
[1643395128763,36.01399485,92.23,92.085,12.17221967]
[1643395128964,52.00884654,92.23,92.085,12.17221967]
[1643395129169,13.04,92.22,92.085,12.17221967]
[1643395129365,6.519,92.18,92.073,46.506]
[1643395129566,9.9,92.18,92.022,24.6075]
[1643395129764,2.95669142,92.179,92.022,24.6075]
[1643395130371,32.07715911,92.178,92.023,45.55325937]
[1643395130567,36.01399485,92.119,92.023,45.55325937]
[1643395130771,48.99399485,92.119,92.024,0.25]
[1643395131867,48.99399485,92.119,92.023,45.55325937]
[1643395132070,48.99399485,92.119,92.02,23.146]
[1643395132267,2.95669142,92.118,91.965,2.9167694]
[1643395132467,74.9626,92.117,91.956,2.9167694]
[1643395132668,74.9626,92.117,91.953,2.9167694]
[1643395132871,2.95669142,92.116,91.956,2.9167694]
[1643395133067,2.95669142,92.116,91.957,46.92217676]
[1643395133267,6.525,92.07,91.957,46.92217676]
[1643395133468,32.07715911,92.069,91.967,6.0]
[1643395134273,32.07715911,92.069,91.968,0.25]
[1643395135469,6.526,92.06,91.971,4.16666928]
[1643395135668,15.026,92.06,91.971,4.16666928]
[1643395135869,15.026,92.06,91.972,0.25]
[1643395136773,15.026,92.06,91.954,24.2084]
[1643395136969,15.026,92.06,91.94,47.5566]
[1643395137171,2.95669142,92.059,91.94,23.0891]
[1643395137371,6.529,92.03,91.94,23.0891]
[1643395137770,36.01399485,92.029,91.941,37.5744357]
[1643395139102,21.764,92.04,91.941,37.5744357]
[1643395139103,32.07715911,92.009,91.941,37.5744357]
[1643395139475,32.07715911,92.009,91.94,23.0891]
[1643395140374,6.53,92.0,91.941,36.10257097]
[1643395140674,13.04,92.1,91.941,36.35257097]
[1643395140974,2.95669142,92.098,91.941,36.35257097]
[1643395141173,2.95669142,92.098,91.951,6.0]
[1643395141374,2.95669142,92.098,91.952,124.5804]
[1643395141574,43.33916509,92.097,91.963,14.98627507]
[1643395141777,43.33916509,92.097,91.964,0.25]
[1643395141974,6.525,92.08,91.973,6.0]
[1643395142376,24.75198887,92.079,91.974,0.25]
[1643395142575,5.0,92.137,91.974,0.25]
[1643395142576,29.2434,92.15,91.974,10.57]
[1643395142782,13.04,92.15,91.974,10.57]
[1643395143076,6.525,92.08,91.984,6.0]
[1643395143274,6.525,92.08,91.985,0.25]
[1643395143475,39.83895139,92.079,91.974,0.25]
[1643395143674,39.83895139,92.079,91.973,6.0]
[1643395143675,42.79564281,92.079,91.973,6.0]
[1643395143874,6.9493394,92.078,91.963,14.98627507]
[1643395144079,9.90603082,92.078,91.902,2.9167694]
[1643395144284,9.90603082,92.078,91.885,74.6404]
[1643395144285,19.565,92.07,91.885,74.6404]
[1643395144480,19.565,92.07,91.86,2.9167694]
[1643395144688,0.30052746,92.036,91.849,2.9167694]
[1643395144885,13.04,92.03,91.849,2.9167694]
[1643395145089,5.0,92.027,91.85,36.13360267]
[1643395145289,39.83895139,91.989,91.865,113.7]
[1643395145490,39.83895139,91.989,91.866,14.95524337]
[1643395145689,39.83895139,91.989,91.866,17.91193479]
[1643395145889,2.46355859,92.03,91.876,6.0]
[1643395146091,76.0384,92.069,91.912,113.7]
[1643395146289,76.0384,92.069,91.92,16.318]
[1643395146491,76.0384,92.069,91.93,6.0]
[1643395146717,4.39747479,92.133,91.93,6.0]
[1643395146718,28.39683131,92.083,91.93,6.0]
[1643395147025,13.04,92.13,91.931,39.34029409]
[1643395147517,21.748,92.1,91.95,16.312]
[1643395147917,48.1077553,92.098,91.961,14.95524337]
[1643395148116,48.1077553,92.098,91.971,6.0]
[1643395148318,48.1077553,92.098,91.972,0.25]
[1643395148516,48.1077553,92.098,91.972,6.25]
[1643395149217,19.98339866,92.069,91.972,6.25]
[1643395149620,6.525,92.07,91.972,6.25]
[1643395150219,6.524,92.09,91.972,6.25]
[1643395150621,83.96331122,92.099,91.981,110.1]
[1643395150819,83.96331122,92.099,91.982,6.25]
[1643395151029,83.96331122,92.099,91.992,6.0]
[1643395151421,83.96331122,92.099,91.993,0.25]
[1643395151621,43.3003364,92.12,91.993,41.94353169]
[1643395152020,6.523,92.11,92.001,6.0]
[1643395152224,2.95669142,92.145,92.002,110.1]
[1643395152521,77.76996646,92.155,92.012,6.0]
[1643395152723,77.76996646,92.155,92.013,45.9144]
[1643395152921,77.76996646,92.155,92.014,110.1]
[1643395153122,77.76996646,92.155,92.03,16.291]
[1643395153321,77.76996646,92.155,92.031,0.25]
[1643395153521,77.76996646,92.155,92.035,6.0]
[1643395153923,77.76996646,92.155,92.042,110.1]
[1643395154120,21.722,92.21,92.052,6.0]
[1643395154322,79.10502396,92.214,92.06,16.289]
[1643395154523,79.10502396,92.214,92.07,6.0]
[1643395154726,79.10502396,92.214,92.084,5.0]
[1643395154922,75.90314074,92.245,92.084,17.08]
[1643395155125,75.90314074,92.245,92.094,6.0]
[1643395155324,35.93286009,92.231,92.095,15.64531435]
[1643395155523,6.514,92.23,92.095,21.64531435]
[1643395155925,2.95669142,92.229,92.095,21.64531435]
[1643395156123,2.95669142,92.229,92.095,21.39531435]
[1643395156323,11.47528039,92.228,92.095,21.39531435]
[1643395156523,2.87182845,92.212,92.095,21.39531435]
[1643395156729,32.15829387,92.211,92.095,21.39531435]
[1643395156923,37.98681374,92.211,92.095,21.39531435]
[1643395157126,6.516,92.2,92.095,21.39531435]
[1643395157523,2.95669142,92.199,92.095,21.39531435]
[1643395157923,2.95669142,92.199,92.096,0.25]
[1643395159123,6.518,92.17,92.095,15.39531435]
[1643395159324,35.93286009,92.169,92.072,24.7013]
[1643395159528,38.88955151,92.169,92.072,24.7013]
[1643395159723,38.88955151,92.169,92.082,6.0]
[1643395160125,6.519,92.16,92.082,6.0]
[1643395160325,15.959,92.16,92.083,41.20653501]
[1643395161728,35.93286009,92.169,92.083,41.20653501]
[1643395162029,6.518,92.18,92.093,6.0]
[1643395162226,21.725,92.2,92.093,6.0]
[1643395162430,21.725,92.2,92.094,0.25]
[1643395162626,2.87182845,92.221,92.094,0.25]
[1643395162927,6.516,92.2,92.094,0.25]
[1643395163127,6.016,92.2,92.094,0.25]
[1643395164028,6.515,92.22,92.1,6.0]
[1643395164228,79.55781064,92.38,92.094,0.25]
[1643395164229,2.87182845,92.226,92.094,0.25]
[1643395164431,2.87182845,92.238,92.095,2.95669142]
[1643395164629,2.87182845,92.243,92.105,6.0]
[1643395164830,2.87182845,92.243,92.106,0.25]
[1643395165032,46.99411039,92.242,92.107,9.88231103]
[1643395165231,6.513,92.24,92.12,16.282]
[1643395165429,46.99411039,92.242,92.121,41.20653501]
[1643395165632,46.99411039,92.242,92.131,6.0]
[1643395165835,2.95669142,92.239,92.132,0.25]
[1643395166030,2.95669142,92.239,92.131,6.0]
[1643395166232,2.95669142,92.239,92.08,13.04]
[1643395166439,2.95669142,92.239,77.0,47.632265]
[1643395166440,0.30079981,92.215,92.05,13.04]
[1643395166642,1.49522966,92.199,92.02,13.04]
[1643395166834,1.49522966,92.181,92.015,69.508]
[1643395167033,13.04,92.17,92.032,23.4208]
[1643395167233,21.09704357,92.169,92.033,45.04748869]
[1643395167635,24.05373499,92.169,92.034,0.25]
[1643395167838,2.95669142,92.168,92.034,0.25]
[1643395169038,45.35323785,92.139,92.034,0.25]
[1643395170640,34.781,92.13,92.034,0.25]
[1643395170841,21.77,92.13,92.033,45.04748869]
[1643395171043,2.95669142,92.129,92.033,45.04748869]
[1643395171241,14.43197181,92.129,92.033,45.04748869]
[1643395171643,14.43197181,92.128,92.033,45.04748869]
[1643395172044,14.43197181,92.127,91.951,1.43940235]
[1643395172244,21.749,92.1,91.96,16.311]
[1643395172445,13.04,92.09,91.96,22.311]
[1643395172644,13.04,92.09,91.963,6.0]
[1643395172874,13.04,92.09,91.971,113.7]
[1643395173068,22.73791611,92.089,91.981,6.0]
[1643395173569,6.525,92.08,91.982,6.0]
[1643395173770,12.46,92.088,91.982,6.0]
[1643395174771,22.73791611,92.089,91.982,6.0]
[1643395175474,22.73791611,92.089,91.983,6.0]
[1643395175671,22.73791611,92.089,91.983,6.25]
[1643395176072,22.73791611,92.089,91.992,6.49316977]
[1643395176274,22.73791611,92.089,91.993,0.25]
[1643395176572,6.525,92.07,91.993,0.25]
[1643395176772,38.42685903,92.069,91.993,0.25]
[1643395176971,38.42685903,92.069,91.992,6.49316977]
[1643395177772,34.788,92.1,91.992,6.49316977]
[1643395177977,1.49522966,92.114,91.993,110.35]
[1643395178173,1.49522966,92.114,92.002,6.0]
[1643395178373,1.49522966,92.129,92.004,110.1]
[1643395178575,1.49522966,92.132,92.014,6.0]
[1643395178776,45.06347695,92.131,92.015,38.869314]
[1643395179178,45.06347695,92.131,92.025,6.0]
[1643395179374,6.522,92.12,92.026,0.25]
[1643395179573,45.06347695,92.131,92.026,6.25]
[1643395179974,45.06347695,92.131,92.027,110.1]
[1643395180377,45.06347695,92.131,92.039,110.1]
[1643395180778,1.49522966,92.152,92.04,0.25]
[1643395180978,1.49522966,92.153,92.049,6.0]
[1643395181379,1.49522966,92.153,92.05,0.25]
[1643395181579,1.49522966,92.161,92.05,110.35]
[1643395181879,6.52,92.15,92.05,123.39]
[1643395182079,6.52,92.15,92.061,34.96233587]
[1643395182279,1.49522966,92.158,92.061,34.96233587]
[1643395182481,1.49522966,92.153,92.071,6.0]
[1643395182783,1.49522966,92.156,92.072,0.25]
[1643395182979,45.86215646,92.16,92.072,0.25]
[1643395183780,45.86215646,92.16,92.062,0.25]
[1643395183982,6.52,92.15,92.062,0.25]
[1643395185585,45.86215646,92.16,92.062,0.25]
[1643395186987,45.86215646,92.16,92.071,6.0]
[1643395187195,45.86215646,92.16,92.062,0.25]
[1643395187988,1.49522966,92.159,92.062,0.25]
[1643395188392,1.49522966,92.158,92.062,0.25]
[1643395188595,6.52,92.15,92.062,0.25]
[1643395190194,1.49522966,92.156,92.062,0.25]
[1643395190393,1.49522966,92.154,92.062,0.25]
[1643395190595,1.49522966,92.162,92.062,0.25]
[1643395190798,1.49522966,92.162,92.071,6.0]
[1643395191004,73.6972,92.209,92.072,6.0]
[1643395191005,1.49522966,92.168,92.072,6.0]
[1643395191201,1.49522966,92.175,92.072,9.20669142]
[1643395191396,1.49522966,92.184,92.101,110.1]
[1643395191596,47.24373459,92.182,92.111,6.0]
[1643395191796,47.24373459,92.182,92.112,0.25]
[1643395191996,47.24373459,92.182,92.112,6.0]
[1643395192195,47.24373459,92.182,92.103,0.25]
[1643395192396,1.49522966,92.18,92.103,0.25]
[1643395192596,1.49522966,92.183,92.103,0.25]
[1643395192798,1.49522966,92.193,92.103,8.58]
[1643395192996,1.49522966,92.193,92.113,6.0]
[1643395193197,63.03416585,92.232,92.113,6.0]
[1643395193198,1.49522966,92.196,92.113,6.0]
[1643395193397,1.49522966,92.199,92.114,116.35]
[1643395193606,63.03416585,92.232,92.12,16.282]
[1643395193607,1.49522966,92.201,92.12,16.282]
[1643395193800,1.49522966,92.205,92.121,0.25]
[1643395193998,1.49522966,92.212,92.131,110.1]
[1643395194198,1.49522966,92.213,92.131,110.1]
[1643395194398,2.99819618,92.231,92.141,6.0]
[1643395194399,1.49522966,92.211,92.141,6.0]
[1643395194598,1.49522966,92.214,92.142,34.96233587]
[1643395194801,1.49522966,92.215,92.15,16.277]
[1643395195200,1.49522966,92.212,92.151,0.25]
[1643395195399,1.49522966,92.211,92.151,0.25]
[1643395195600,1.49522966,92.212,92.151,0.25]
[1643395196302,1.49522966,92.214,92.143,0.25]
[1643395196503,1.49522966,92.213,92.143,0.25]
[1643395196703,1.49522966,92.212,92.143,0.25]
[1643395196902,1.49522966,92.209,92.143,0.25]
[1643395197102,1.49522966,92.203,92.143,0.25]
[1643395197305,33.31826277,92.202,92.143,0.25]
[1643395198403,33.31826277,92.202,92.142,34.96233587]
[1643395198607,1.49522966,92.201,92.142,34.96233587]
[1643395198806,33.31826277,92.202,92.142,34.96233587]
[1643395198807,1.49522966,92.2,92.142,34.96233587]
[1643395199605,33.31826277,92.202,92.142,34.96233587]
[1643395200506,33.31826277,92.202,92.06,37.9985]
[1643395200507,6.516,92.2,92.06,37.9985]
[1643395200707,1.49522966,92.186,92.06,24.9585]
[1643395201006,1.49522966,92.181,92.06,24.9585]
[1643395201308,1.49522966,92.171,92.061,110.1]
[1643395201506,36.26812085,92.171,92.062,38.65247243]
[1643395201806,34.77289119,92.171,92.063,110.1]
[1643395202004,6.518,92.17,92.063,110.1]
[1643395202607,1.49522966,92.169,92.064,0.25]
[1643395202806,1.49522966,92.169,92.073,6.0]
[1643395203211,1.49522966,92.169,92.06,41.2515]
[1643395203212,6.519,92.16,92.045,23.0709]
[1643395203409,1.49522966,92.169,92.045,23.0709]
[1643395203410,1.49522966,92.147,92.045,23.0709]
[1643395203614,0.31411661,92.128,91.989,1.43940235]
[1643395203814,13.04,92.12,91.972,72.2924]
[1643395204013,0.31892378,92.102,91.972,23.4466]
[1643395204310,34.77289119,92.089,91.973,45.5957457]
[1643395204509,33.31826277,92.069,91.973,45.5957457]
[1643395204710,46.20826277,92.069,91.973,45.5957457]
[1643395204908,46.20826277,92.069,91.983,6.0]
[1643395205509,6.526,92.06,91.983,6.0]
[1643395205710,6.526,92.06,91.973,45.5957457]
[1643395206511,6.526,92.06,91.972,23.4466]
[1643395206735,19.566,92.06,91.972,23.4466]
[1643395206940,22.52269142,92.06,91.972,23.4466]
[1643395207136,22.52269142,92.06,91.905,1.43940235]
[1643395207437,22.52269142,92.06,91.931,6.0]
[1643395207638,22.52269142,92.06,91.932,40.78654771]
[1643395208038,22.52269142,92.06,91.942,6.0]
[1643395208240,22.52269142,92.06,91.913,23.2687]
[1643395208455,0.31831642,92.042,91.901,24.5445]
[1643395208641,6.533,92.0,91.901,24.5445]
[1643395208845,15.063,92.0,91.901,24.5445]
[1643395209041,15.063,92.0,91.861,1.43940235]
[1643395209342,34.77289119,91.999,91.861,39.66557755]
[1643395209542,37.72958261,91.999,91.871,6.0]
[1643395209745,1.49522966,92.039,91.871,6.0]
[1643395209941,10.0,92.04,91.874,1.43940235]
[1643395210144,1.49522966,92.074,91.884,6.0]
[1643395210343,1.49522966,92.074,91.89,13.04]
[1643395210545,1.49522966,92.074,91.891,69.3849]
[1643395210744,13.04,92.07,91.891,69.6349]
[1643395210944,6.527,92.05,91.891,69.3849]
[1643395211151,13.04,92.04,91.891,22.6114]
[1643395211746,2.95669142,92.039,91.891,22.6114]
[1643395212344,6.533,92.0,91.892,0.25]
[1643395212545,35.60786641,91.999,91.892,0.25]
[1643395212746,38.56455783,91.999,91.891,22.6114]
[1643395212944,2.95669142,91.998,91.891,22.6114]
[1643395213445,6.531,91.99,91.891,22.6114]
[1643395214047,6.531,91.99,91.892,0.25]
[1643395214246,35.60786641,91.999,91.892,0.25]
[1643395214648,35.60786641,91.999,91.892,12.88]
[1643395215046,35.60786641,91.999,91.892,0.25]
[1643395215449,6.532,91.98,91.901,6.0]
[1643395215650,39.55092739,91.979,91.892,0.25]
[1643395219196,13.04,92.01,91.892,0.6937805]
[1643395219394,83.86772662,92.012,91.893,2.95669142]
[1643395219594,83.86772662,92.012,91.903,6.0]
[1643395219793,83.86772662,92.012,91.922,113.7]
[1643395219995,13.04,92.08,91.932,6.0]
[1643395220297,1.49522966,92.151,92.0,16.304]
[1643395220508,1.49522966,92.151,92.0,38.434]
[1643395220694,13.04,92.17,92.01,6.0]
[1643395220895,34.769,92.18,92.015,0.31466403]
[1643395221099,34.769,92.18,92.011,72.6533]
[1643395221100,34.769,92.18,92.021,6.0]
[1643395221298,36.96832925,92.179,92.03,16.295]
[1643395221494,36.96832925,92.179,92.032,6.0]
[1643395221693,88.17645937,92.155,92.041,0.6937805]
[1643395221897,44.81674715,92.154,92.041,0.9437805]
[1643395222094,44.81674715,92.154,92.043,6.0]
[1643395222298,6.52,92.14,92.044,0.25]
[1643395222498,40.14339254,92.139,92.044,0.25]
[1643395223196,1.49522966,92.187,92.044,0.25]
[1643395223400,1.49522966,92.196,92.05,29.335]
[1643395223597,6.516,92.2,92.06,6.0]
[1643395223798,6.516,92.2,92.07,13.04]
[1643395223997,6.516,92.2,92.08,6.0]
[1643395224198,41.8049417,92.199,92.081,110.1]
[1643395224402,41.8049417,92.199,92.081,110.35]
[1643395224599,41.8049417,92.199,92.092,1.43139472]
[1643395224800,6.517,92.19,92.093,0.25]
[1643395225200,41.8049417,92.199,92.093,0.25]
[1643395225399,41.8049417,92.199,92.102,6.0]
[1643395225801,41.8049417,92.199,92.103,0.25]
[1643395226602,41.8049417,92.199,92.102,6.0]
[1643395227206,68.99801111,92.208,92.103,0.25]
[1643395227404,68.99801111,92.208,92.103,110.35]
[1643395227604,68.99801111,92.208,92.113,6.0]
[1643395227806,68.99801111,92.208,92.114,110.35]
[1643395228005,68.99801111,92.208,92.124,6.0]
[1643395228205,68.99801111,92.208,92.125,9.76615869]
[1643395228405,68.99801111,92.208,92.125,10.01615869]
[1643395229405,6.516,92.2,92.125,10.01615869]
[1643395229806,68.99801111,92.208,92.125,10.01615869]
[1643395230510,68.99801111,92.208,92.09,13.04]
[1643395230706,79.49801111,92.208,92.086,76.059]
[1643395230906,1.49522966,92.204,92.086,76.059]
[1643395231108,1.49522966,92.2,92.086,76.059]
[1643395231315,1.49522966,92.199,92.06,13.04]
[1643395231508,40.91184843,92.169,92.07,10.8621542]
[1643395231908,40.91184843,92.169,92.071,0.25]
[1643395232309,40.91184843,92.169,92.071,110.35]
[1643395232508,1.49522966,92.202,92.071,110.35]
[1643395232809,1.49522966,92.204,92.071,0.25]
[1643395233013,1.49522966,92.207,92.071,0.25]
[1643395233214,1.49522966,92.209,92.071,110.35]
[1643395233414,1.49522966,92.209,92.07,10.8621542]
[1643395233614,41.59703217,92.207,92.07,10.8621542]
[1643395233814,41.59703217,92.207,92.08,6.0]
[1643395234815,6.517,92.18,92.081,0.25]
[1643395235017,48.44723487,92.179,92.081,0.25]
[1643395235214,48.44723487,92.179,92.08,6.0]
[1643395236319,6.519,92.17,92.08,6.0]
[1643395236518,6.519,92.17,92.07,10.8621542]
[1643395236739,6.519,92.17,92.071,0.25]
[1643395236942,6.519,92.17,92.08,6.0]
[1643395237840,6.519,92.17,92.04,13.04]
[1643395238041,13.04,92.16,91.961,71.6264]
[1643395238247,0.32019916,92.114,91.944,1.43940235]
[1643395238441,13.04,92.1,91.897,113.7]
[1643395238643,2.0,92.077,91.912,71.6264]
[1643395238942,39.06233487,92.069,91.932,113.7]
[1643395239142,5.59258571,92.07,91.933,112.01602883]
[1643395239341,5.59258571,92.07,91.97,113.7]
[1643395239542,75.83499686,92.077,91.98,6.0]
[1643395239747,75.83499686,92.077,91.982,110.1]
[1643395240145,75.83499686,92.077,91.992,6.0]
[1643395240343,75.83499686,92.077,91.993,0.25]
[1643395240543,75.83499686,92.077,91.993,116.35]
[1643395241144,75.83499686,92.077,92.0,6.0]
[1643395241345,48.39718431,92.076,92.004,1.91602883]
[1643395241744,75.83499686,92.077,92.004,1.91602883]
[1643395242846,35.57496372,92.076,92.004,1.91602883]
[1643395243246,35.57496372,92.076,91.981,22.9623]
[1643395243647,47.60496372,92.076,91.981,22.9623]
[1643395243845,47.60496372,92.076,91.982,0.25]
[1643395244246,6.525,92.07,91.951,48.9834]
[1643395244447,19.565,92.07,91.951,48.9834]
[1643395244650,19.565,92.07,91.961,6.0]
[1643395245248,35.57496372,92.076,91.962,8.15115002]
[1643395245448,35.57496372,92.076,91.971,110.1]
[1643395245649,35.57496372,92.076,91.973,110.1]
[1643395245849,35.57496372,92.076,91.974,0.25]
[1643395246064,35.57496372,92.076,91.984,3.04640339]
[1643395246349,35.57496372,92.076,91.985,0.25]
[1643395246548,35.57496372,92.076,91.995,110.1]
[1643395246749,35.57496372,92.076,91.996,0.25]
[1643395246950,35.57496372,92.076,92.007,8.15115002]
[1643395247150,21.745,92.11,92.007,8.15115002]
[1643395247352,1.49522966,92.119,92.008,0.25]
[1643395247551,13.04,92.12,92.008,0.25]
[1643395247552,6.521,92.12,92.018,110.1]
[1643395247751,6.521,92.12,92.019,0.25]
[1643395248151,73.79645278,92.126,92.019,0.25]
[1643395248152,37.03545774,92.119,92.029,3.04640339]
[1643395248353,37.03545774,92.119,92.03,0.25]
[1643395251062,37.03545774,92.119,92.039,6.0]
[1643395251260,37.03545774,92.119,92.04,0.25]
[1643395252564,37.03545774,92.119,92.039,116.1]
[1643395253462,6.522,92.1,92.039,6.0]
[1643395253661,15.722,92.1,92.039,6.0]
[1643395253863,15.722,92.1,91.99,16.305]
[1643395254064,9.2,92.1,91.97,13.04]
[1643395254268,2.95669142,92.099,92.0,6.0]
[1643395254563,41.78988583,92.098,91.992,6.0]
[1643395254763,41.78988583,92.098,91.993,0.25]
[1643395254964,2.95669142,92.097,91.993,0.25]
[1643395255564,6.525,92.07,91.993,0.25]
[1643395255764,35.96291589,92.069,91.993,0.25]
[1643395257566,6.525,92.06,91.993,0.25]
[1643395258167,35.96291589,92.069,91.993,0.25]
[1643395258371,58.92277823,92.077,91.993,0.25]
[1643395259270,44.75437651,92.076,91.993,0.25]
[1643395259770,2.95669142,92.075,91.993,0.25]
[1643395259971,2.95669142,92.075,91.978,6.0]
[1643395260170,2.95669142,92.075,91.981,0.25]
[1643395260974,6.525,92.07,91.981,0.25]
[1643395261171,6.525,92.07,91.989,6.0]
[1643395261373,6.525,92.07,91.99,0.25]
[1643395261974,58.92277823,92.077,91.99,16.555]
[1643395262372,58.92277823,92.077,92.0,6.0]
[1643395262772,58.92277823,92.077,92.001,0.25]
[1643395262992,58.92277823,92.077,92.001,112.33837336]
[1643395263377,58.92277823,92.077,92.011,6.0]
[1643395263775,1.49522966,92.117,92.012,0.25]
[1643395263977,46.8632564,92.116,92.012,110.35]
[1643395264378,48.35848606,92.116,92.023,9.20918005]
[1643395264577,46.8632564,92.116,92.033,6.0]
[1643395264775,46.8632564,92.116,92.034,0.25]
[1643395265177,1.49522966,92.113,92.034,110.35]
[1643395265378,1.49522966,92.113,92.034,0.25]
[1643395265982,1.49522966,92.114,92.034,0.25]
[1643395266580,1.49522966,92.114,92.039,6.0]
[1643395266780,1.49522966,92.114,92.034,0.25]
[1643395266781,1.49522966,92.114,92.04,2.23837336]
[1643395266982,1.49522966,92.114,92.04,1.98837336]
[1643395267180,1.49522966,92.115,92.041,0.25]
[1643395268083,46.8632564,92.116,91.988,1.43940235]
[1643395268282,13.04,92.11,91.982,1.43940235]
[1643395268582,5.97275628,92.109,91.992,6.0]
[1643395268780,3.01606486,92.108,91.98,6.0]
[1643395268981,16.49071763,92.108,91.981,8.86312437]
[1643395269182,5.97275628,92.107,91.981,8.86312437]
[1643395269380,3.01606486,92.106,91.991,6.0]
[1643395269581,6.525,92.07,91.991,6.0]
[1643395269779,48.99307311,92.069,91.992,0.25]
[1643395271004,6.526,92.06,91.992,0.25]
[1643395271205,48.99307311,92.069,91.992,0.25]
[1643395271404,48.99307311,92.069,91.992,6.25]
[1643395271605,48.99307311,92.069,91.992,0.25]
[1643395272705,48.99307311,92.069,91.981,8.86312437]
[1643395272706,48.99307311,92.069,91.968,71.7318]
[1643395272908,6.525,92.06,91.93,29.355]
[1643395273109,6.525,92.06,91.93,16.315]
[1643395273307,2.95669142,92.059,91.93,16.315]
[1643395273605,2.95669142,92.059,91.949,110.1]
[1643395273807,2.95669142,92.059,91.958,9.92350391]
[1643395274408,6.527,92.03,91.958,9.92350391]
[1643395274612,21.759,92.05,91.958,9.92350391]
[1643395274809,2.87182845,92.074,91.958,9.92350391]
[1643395274810,2.87182845,92.074,91.959,0.25]
[1643395275015,2.87182845,92.096,91.968,6.0]
[1643395275209,2.87182845,92.096,91.969,110.1]
[1643395275408,2.87182845,92.101,91.969,110.35]
[1643395275612,6.525,92.07,91.98,1.27881984]
[1643395275813,42.91364872,92.069,91.981,0.25]
[1643395276010,42.91364872,92.069,91.99,6.0]
[1643395276810,45.87034014,92.069,91.99,6.0]
[1643395277210,6.525,92.06,91.99,6.0]
[1643395277410,6.525,92.06,91.98,1.27881984]
[1643395277610,6.525,92.06,91.99,6.0]
[1643395277812,6.525,92.06,91.98,1.27881984]
[1643395279314,6.526,92.05,91.98,1.27881984]
[1643395279512,41.09957751,92.049,91.98,1.27881984]
[1643395279713,2.95669142,92.077,91.981,0.25]
[1643395279913,2.87182845,92.108,91.99,6.0]
[1643395280112,2.87182845,92.109,91.99,6.0]
[1643395280317,2.87182845,92.11,91.991,0.25]
[1643395280516,6.523,92.09,91.991,110.35]
[1643395280717,46.575632,92.083,91.991,110.35]
[1643395281015,46.575632,92.083,92.001,6.0]
[1643395281218,46.575632,92.083,92.002,8.57859936]
[1643395281616,6.525,92.07,91.934,2.9167694]
[1643395281816,6.525,92.07,91.97,6.0]
[1643395282015,2.95669142,92.069,91.969,6.0]
[1643395282215,6.525,92.07,91.97,110.1]
[1643395282416,6.525,92.07,91.97,110.35]
[1643395282716,40.52641903,92.069,91.981,110.1]
[1643395282917,52.46641903,92.069,91.981,110.1]
[1643395283117,6.525,92.06,91.991,6.0]
[1643395283318,6.525,92.06,91.992,0.87472797]
[1643395283518,6.525,92.06,91.992,6.87472797]
[1643395283816,6.525,92.06,91.992,0.62472797]
[1643395284016,6.525,92.06,91.969,6.0]
[1643395284217,6.525,92.06,91.953,113.7]
[1643395284218,2.95669142,92.059,91.953,113.7]
[1643395284416,6.528,92.03,91.953,113.7]
[1643395284817,6.528,92.03,91.95,47.2381]